fUST/lending_fUST_20250707
["ID","MTS","AMOUNT","RATE_DAILY","PERIOD"]
[370040876,1751859038818,-1371.95330811,0.0002259,7]
[370040877,1751859038828,-151.0,0.000226,8]
[370040878,1751859038838,-132527.54207327,0.000226,5]
[370040879,1751859038848,-238.564454,0.00022603,2]
[370040880,1751859038858,-2614.02,0.00022606,3]
[370040881,1751859038867,-157.46393335,0.00022607,2]
[370040882,1751859038876,-204.37285,0.00022644,2]
[370040883,1751859038886,-2614.02,0.00022706,5]
[370040884,1751859038895,-204.37285,0.00022741,2]
[370040885,1751859038905,-620.93,0.0002276,2]
[370040886,1751859038918,-539.66,0.0002276,2]
[370040887,1751859038928,-695.75,0.0002276,2]
[370040888,1751859038938,-1038.00452864,0.0002277,2]
[370040889,1751859038947,-1371.95330811,0.00022797,7]
[370040890,1751859038958,-882.32,0.000228,7]
[370040891,1751859038967,-2614.02,0.00022806,3]
[370040892,1751859038977,-204.37285,0.00022837,2]
[370040893,1751859038986,-2614.02,0.00022906,7]
[370040894,1751859038996,-97894.04805221,0.00022919,2]
[370040895,1751859039006,-500.0,0.00022973,2]
[370040896,1751859039017,-500.0,0.00022973,2]
[370040897,1751859039032,-161.20848038,0.00022973,2]
[370040898,1751859039046,-500.0,0.00022973,2]
[370040899,1751859039059,-500.0,0.00022973,2]
[370040900,1751859039072,-150.0,0.00023,7]
[370040901,1751859039083,-848.27993403,0.00023,7]
[370040902,1751859039096,-5561.79,0.00023,7]
[370040903,1751859039108,-73361.69,0.00023,7]
[370040904,1751859039120,-160.0,0.00023,2]
[370040905,1751859039132,-134829.11,0.00023,2]
[370040906,1751859039146,-160.0,0.00023,3]
[370040907,1751859039158,-330.67695274,0.00023,2]
[370040908,1751859039171,-1371.95330811,0.00023003,8]
[370040909,1751859039184,-2614.02,0.00023006,3]
[370040910,1751859039198,-848.27993403,0.0002301,3]
[370040911,1751859039211,-230.48668418,0.0002301,3]
[370040912,1751859039223,-214.06929976,0.0002301,3]
[370040913,1751859039236,-12584.46609586,0.0002301,3]
[370040914,1751859039250,-215.21338352,0.0002301,3]
[370040915,1751859039263,-212.0,0.00023014,7]
[370040916,1751859039276,-169.0,0.00023014,7]
[370040917,1751859039289,-1001.71811265,0.00023021,2]
[370040918,1751859039301,-501.59288037,0.00023021,2]
[370040919,1751859039312,-501.60560601,0.00023021,2]
[370040920,1751859039322,-502.91263907,0.00023021,2]
[370040921,1751859039334,-1000.0,0.00023021,2]
[370040922,1751859039346,-501.40803453,0.00023021,2]
[370040923,1751859039359,-1000.0,0.00023021,2]
[370040924,1751859039371,-503.61122177,0.00023021,2]
[370040925,1751859039384,-1001.43177517,0.00023021,2]
[370040926,1751859039396,-620.93,0.00023034,2]
[370040927,1751859039410,-539.66,0.00023034,2]
[370040928,1751859039423,-695.75,0.00023034,2]
[370040929,1751859039436,-2614.02,0.00023106,7]
[370040930,1751859039448,-967.0,0.00023182,2]
[370040931,1751859039458,-648.015,0.00023182,2]
[370040932,1751859039469,-151.0,0.000232,9]
[370040933,1751859039479,-2614.02,0.00023206,7]
[370040934,1751859039492,-1371.95330811,0.0002321,8]
[370040935,1751859039506,-160.0,0.00023215,3]
[370040936,1751859039517,-991.02615029,0.0002329,4]
[370040937,1751859039529,-991.02615029,0.0002329,4]
[370040938,1751859039539,-991.02615029,0.0002329,4]
[370040939,1751859039550,-991.02615029,0.0002329,4]
[370040940,1751859039561,-991.02615029,0.0002329,4]
[370040941,1751859039574,-991.02615029,0.0002329,4]
[370040943,1751859039586,-991.02615029,0.0002329,4]
[370040944,1751859039597,-991.02615029,0.0002329,4]
[370040945,1751859039608,-991.02615029,0.0002329,4]
[370040946,1751859039618,-991.02615029,0.0002329,4]
[370040947,1751859039629,-991.02615029,0.0002329,4]
[370040948,1751859039640,-991.02615029,0.0002329,4]
[370040949,1751859039654,-991.02615029,0.0002329,4]
[370040950,1751859039665,-991.02615029,0.0002329,4]
[370040951,1751859039676,-991.02615029,0.0002329,4]
[370040952,1751859039690,-991.02615029,0.0002329,4]
[370040953,1751859039703,-991.02615029,0.0002329,4]
[370040954,1751859039715,-991.02615029,0.0002329,4]
[370040955,1751859039727,-991.02615029,0.0002329,4]
[370040956,1751859039739,-991.02,0.0002329,4]
[370040957,1751859039752,-2312.39435067,0.0002329,4]
[370040958,1751859039763,-2312.39435067,0.0002329,4]
[370040959,1751859039776,-2312.39435067,0.0002329,4]
[370040960,1751859039788,-2312.39435067,0.0002329,4]
[370040961,1751859039801,-2312.39435067,0.0002329,4]
[370040962,1751859039814,-2312.39435067,0.0002329,4]
[370040963,1751859039825,-2312.39435067,0.0002329,4]
[370040964,1751859039838,-2312.39435067,0.0002329,4]
[370040965,1751859039850,-2312.39435067,0.0002329,4]
[370040966,1751859039861,-150.18282476,0.0002329,4]
[370040967,1751859039872,-150.18282476,0.0002329,4]
[370040968,1751859039883,-150.18282476,0.0002329,4]
[370040969,1751859039894,-150.18282476,0.0002329,4]
[370040971,1751859039906,-150.18282476,0.0002329,4]
[370040972,1751859039921,-150.18282476,0.0002329,4]
[370040973,1751859039932,-150.18282476,0.0002329,4]
[370040974,1751859039943,-150.18282476,0.0002329,4]
[370040976,1751859039955,-150.18282476,0.0002329,4]
[370040978,1751859039966,-150.18282476,0.0002329,4]
[370040980,1751859039978,-150.18282476,0.0002329,4]
[370040982,1751859039991,-150.18282476,0.0002329,4]
[370040985,1751859040003,-150.18282476,0.0002329,4]
[370040987,1751859040014,-150.18282476,0.0002329,4]
[370040989,1751859040026,-150.18282476,0.0002329,4]
[370040992,1751859040038,-150.18282476,0.0002329,4]
[370040994,1751859040048,-150.18282476,0.0002329,4]
[370040996,1751859040058,-150.18282476,0.0002329,4]
[370040998,1751859040067,-150.18282476,0.0002329,4]
[370041000,1751859040076,-150.18,0.0002329,4]
[370041002,1751859040085,-350.42659112,0.0002329,4]
[370041004,1751859040095,-350.42659112,0.0002329,4]
[370041006,1751859040108,-350.42659112,0.0002329,4]
[370041008,1751859040120,-350.42659112,0.0002329,4]
[370041010,1751859040130,-350.42659112,0.0002329,4]
[370041012,1751859040139,-350.42659112,0.0002329,4]
[370041014,1751859040149,-350.42659112,0.0002329,4]
[370041016,1751859040158,-350.42659112,0.0002329,4]
[370041018,1751859040167,-350.42659112,0.0002329,4]
[370041020,1751859040177,-2614.02,0.00023306,4]
[370041022,1751859040188,-620.93,0.00023308,2]
[370041023,1751859040198,-539.66,0.00023308,2]
[370041026,1751859040208,-695.75,0.00023308,2]
[370041028,1751859040218,-25000.0,0.0002331,2]
[370041029,1751859040229,-151.0,0.0002331,2]
[370041031,1751859040239,-151.0,0.0002331,2]
[370041034,1751859040249,-151.0,0.0002331,2]
[370041036,1751859040258,-690.642,0.0002331,2]
[370041058,1751859040410,-151.0,0.0002331,2]
[370041061,1751859040473,-151.0,0.0002331,2]
[370041063,1751859040483,-151.0,0.0002331,2]
[370041065,1751859040493,-151.0,0.0002331,2]
[370041067,1751859040503,-17535.23554636,0.0002331,2]
[370041069,1751859040513,-151.0,0.0002331,2]
[370041071,1751859040524,-151.0,0.0002331,2]
[370041073,1751859040533,-151.0,0.0002331,2]
[370041075,1751859040542,-151.0,0.0002331,2]
[370041077,1751859040552,-153.05532517,0.0002331,2]
[370041079,1751859040561,-1500.0,0.0002331,2]
[370041081,1751859040570,-172.0321181,0.0002331,2]
[370041083,1751859040580,-5000.0,0.0002331,2]
[370041085,1751859040590,-1500.0,0.0002331,2]
[370041087,1751859040600,-500.0,0.0002331,2]
[370041089,1751859040610,-500.0,0.0002331,2]
[370041091,1751859040619,-1500.0,0.0002331,2]
[370041093,1751859040628,-500.0,0.0002331,2]
[370041095,1751859040637,-500.0,0.0002331,2]
[370041097,1751859040647,-207.4,0.0002331,2]
[370041099,1751859040656,-500.0,0.0002331,2]
[370041101,1751859040665,-500.0,0.0002331,2]
[370041103,1751859040674,-1500.0,0.0002331,2]
[370041105,1751859040684,-500.0,0.0002331,2]
[370041107,1751859040693,-500.0,0.0002331,2]
[370041109,1751859040702,-1500.0,0.0002331,2]
[370041111,1751859040711,-500.0,0.0002331,2]
[370041113,1751859040720,-500.0,0.0002331,2]
[370041115,1751859040729,-3794.1510306,0.0002331,2]
[370041117,1751859040739,-500.0,0.0002331,2]
[370041120,1751859040748,-500.0,0.0002331,2]
[370041121,1751859040758,-1500.0,0.0002331,2]
[370041124,1751859040767,-218.6253697,0.0002331,2]
[370041126,1751859040778,-1500.0,0.0002331,2]
[370041128,1751859040787,-500.0,0.0002331,2]
[370041130,1751859040796,-500.0,0.0002331,2]
[370041132,1751859040806,-1500.0,0.0002331,2]
[370041134,1751859040815,-1500.0,0.0002331,2]
[370041136,1751859040823,-1500.0,0.0002331,2]
[370041138,1751859040832,-1500.0,0.0002331,2]
[370041140,1751859040841,-151.0,0.0002331,2]
[370041141,1751859040851,-151.0,0.0002331,2]
[370041143,1751859040859,-151.0,0.0002331,2]
[370041145,1751859040869,-151.0,0.0002331,2]
[370041148,1751859040879,-151.0,0.0002331,2]
[370041150,1751859040888,-151.0,0.0002331,2]
[370041151,1751859040897,-151.0,0.0002331,2]
[370041153,1751859040907,-2312.39435067,0.00023323,4]
[370041156,1751859040919,-350.42659112,0.00023323,4]
[370041158,1751859040929,-50532.86497784,0.0002335,2]
[370041160,1751859040938,-716.195754,0.00023365,2]
[370041162,1751859040949,-2614.02,0.00023406,3]
[370041163,1751859040958,-1371.95330811,0.00023417,9]
[370041165,1751859040967,-742.6949969,0.0002342,2]
[370041167,1751859040977,-802.654,0.00023435,2]
[370041169,1751859040986,-2200.0,0.00023435,2]
[370041171,1751859040996,-2312.39435067,0.00023446,4]
[370041174,1751859041006,-350.42659112,0.00023446,4]
[370041176,1751859041015,-770.17471178,0.00023475,2]
[370041178,1751859041023,-160.0,0.000235,3]
[370041180,1751859041033,-837.79946008,0.000235,3]
[370041181,1751859041042,-160.0,0.000235,3]
[370041183,1751859041051,-2614.02,0.00023506,2]
[370041186,1751859041060,-1001.45402128,0.00023521,2]
[370041187,1751859041069,-1001.76193686,0.00023521,2]
[370041189,1751859041078,-501.61453854,0.00023521,2]
[370041191,1751859041087,-500.9883499,0.00023521,2]
[370041194,1751859041098,-798.67117612,0.0002353,2]
[370041196,1751859041108,-200.0,0.00023561,2]
[370041197,1751859041117,-200.0,0.00023561,2]
[370041199,1751859041126,-200.0,0.00023561,2]
[370041201,1751859041136,-200.0,0.00023561,2]
[370041203,1751859041146,-200.0,0.00023561,2]
[370041205,1751859041155,-304.53261215,0.00023561,2]
[370041208,1751859041165,-501.86266387,0.00023568,2]
[370041210,1751859041174,-1500.0,0.00023568,2]
[370041212,1751859041183,-2312.39435067,0.00023569,4]
[370041214,1751859041193,-350.42659112,0.00023569,4]
[370041216,1751859041202,-1865.05147816,0.00023574,2]
[370041217,1751859041212,-620.93,0.00023582,2]
[370041220,1751859041221,-539.66,0.00023582,2]
[370041223,1751859041238,-695.75,0.00023582,2]
[370041225,1751859041252,-151.0,0.00023584,6]
[370041227,1751859041263,-828.22200964,0.00023585,2]
[370041229,1751859041273,-2614.02,0.00023606,2]
[370041231,1751859041283,-1371.95330811,0.00023624,9]
[370041233,1751859041293,-858.86622399,0.0002364,2]
[370041235,1751859041303,-2312.39435067,0.00023692,4]
[370041237,1751859041313,-350.42659112,0.00023692,4]
[370041240,1751859041323,-890.64427428,0.00023695,2]
[370041242,1751859041334,-179.6927576,0.00023699,2]
[370041244,1751859041347,-576.0368563,0.00023699,2]
[370041246,1751859041358,-318.9596565,0.00023699,2]
[370041248,1751859041368,-307.4988,0.00023699,2]
[370041250,1751859041378,-295.7647253,0.00023699,2]
[370041252,1751859041388,-2614.02,0.00023706,2]
[370041254,1751859041398,-923.59811243,0.0002375,2]
[370041256,1751859041407,-151.0,0.000238,10]
[370041258,1751859041417,-957.77124259,0.00023805,2]
[370041260,1751859041426,-2614.02,0.00023806,2]
[370041262,1751859041436,-2312.39435067,0.00023814,4]
[370041264,1751859041445,-350.42659112,0.00023814,4]
[370041266,1751859041455,-1371.95330811,0.00023831,10]
[370041268,1751859041465,-620.93,0.00023856,2]
[370041270,1751859041474,-539.66,0.00023856,2]
[370041272,1751859041484,-695.75,0.00023856,2]
[370041275,1751859041493,-25000.0,0.00023858,2]
[370041277,1751859041503,-5000.0,0.00023858,2]
[370041279,1751859041513,-993.20877856,0.0002386,2]
[370041281,1751859041523,-1563.8558295,0.000239,2]
[370041283,1751859041533,-882.32,0.000239,7]
[370041285,1751859041542,-2614.02,0.00023906,7]
[370041287,1751859041552,-1498.20536688,0.00023906,2]
[370041289,1751859041562,-1029.95750337,0.00023915,2]
[370041291,1751859041571,-2312.39435067,0.00023937,4]
[370041293,1751859041580,-350.42659112,0.00023937,4]
[370041295,1751859041589,-1068.065931,0.0002397,2]
[370041297,1751859041603,-150.0,0.00023973,2]
[370041298,1751859041613,-3446.12731089,0.00024,2]
[370041300,1751859041623,-20181.7494414,0.00024,2]
[370041302,1751859041632,-19758.26113543,0.00024,4]
[370041304,1751859041642,-160.0,0.00024,7]
[370041306,1751859041652,-837.79946008,0.00024,7]
[370041308,1751859041662,-160.0,0.00024,7]
[370041310,1751859041671,-230.48668418,0.00024,7]
[370041312,1751859041681,-5561.79,0.00024,7]
[370041314,1751859041691,-215.21338352,0.00024,7]
[370041316,1751859041700,-73361.69,0.00024,7]
[370041318,1751859041709,-134829.11,0.00024,2]
[370041321,1751859041720,-160.0,0.00024,7]
[370041322,1751859041730,-279.827697,0.00024,7]
[370041325,1751859041741,-2614.02,0.00024006,7]
[370041327,1751859041750,-151.0,0.00024029,7]
[370041329,1751859041760,-1371.95330811,0.00024038,10]
[370041331,1751859041769,-1498.20536688,0.00024055,2]
[370041333,1751859041778,-2312.39435067,0.0002406,4]
[370041335,1751859041788,-350.42659112,0.0002406,4]
[370041337,1751859041798,-2614.02,0.00024106,3]
[370041339,1751859041807,-2000.0,0.00024116,2]
[370041341,1751859041815,-620.93,0.0002413,2]
[370041343,1751859041825,-539.66,0.0002413,2]
[370041345,1751859041834,-695.75,0.0002413,2]
[370041347,1751859041845,-150.0,0.00024164,7]
[370041349,1751859041855,-170.0,0.00024164,7]
[370041351,1751859041864,-2312.39435067,0.00024183,4]
[370041353,1751859041874,-350.42659112,0.00024183,4]
[370041355,1751859041883,-160.0,0.00024198,4]
[370041356,1751859041892,-151.0,0.000242,8]
[370041358,1751859041902,-1498.20536688,0.00024204,2]
[370041360,1751859041913,-2614.02,0.00024206,6]
[370041362,1751859041925,-1371.95330811,0.00024245,10]
[370041364,1751859041934,-823.0,0.00024278,2]
[370041366,1751859041943,-2312.39435067,0.00024305,4]
[370041368,1751859041953,-350.42659112,0.00024305,4]
[370041370,1751859041962,-2614.02,0.00024306,4]
[370041372,1751859041971,-1498.20536688,0.00024352,2]
[370041374,1751859041981,-737.8076089,0.00024384,2]
[370041376,1751859041991,-3967.07919496,0.0002439,2]
[370041378,1751859042002,-151.0,0.000244,6]
[370041379,1751859042011,-620.93,0.00024404,2]
[370041380,1751859042021,-539.66,0.00024404,2]
[370041381,1751859042030,-695.75,0.00024404,2]
[370041382,1751859042040,-2614.02,0.00024406,7]
[370041383,1751859042049,-25000.0,0.00024406,2]
[370041384,1751859042059,-5000.0,0.00024406,2]
[370041385,1751859042069,-2312.39435067,0.00024428,4]
[370041386,1751859042079,-350.42659112,0.00024428,4]
[370041387,1751859042088,-2314.177802,0.00024451,4]
[370041388,1751859042100,-1371.95330811,0.00024452,11]
[370041389,1751859042110,-151.0,0.00024474,7]
[370041390,1751859042119,-9781.80335578,0.000245,2]
[370041391,1751859042128,-200.0,0.000245,2]
[370041392,1751859042138,-1498.20536688,0.00024501,2]
[370041393,1751859042148,-2614.02,0.00024506,4]
[370041394,1751859042157,-177.763542,0.00024521,2]
[370041395,1751859042167,-177.763542,0.00024521,2]
[370041396,1751859042176,-250.0,0.00024521,2]
[370041397,1751859042186,-150.0,0.00024543,2]
[370041398,1751859042195,-2312.39,0.00024551,4]
[370041399,1751859042204,-350.42,0.00024551,4]
[370041400,1751859042214,-512.7884035,0.00024568,2]
[370041401,1751859042224,-2614.02,0.00024606,7]
[370041402,1751859042233,-1498.20536688,0.0002465,2]
[370041403,1751859042242,-86335.33365112,0.0002465,2]
[370041404,1751859042252,-501.10567785,0.0002465,2]
[370041405,1751859042261,-71623.11517033,0.00024651,2]
[370041406,1751859042270,-300.0,0.00024657,4]
[370041407,1751859042280,-300.0,0.00024657,4]
[370041408,1751859042289,-300.0,0.00024657,4]
[370041409,1751859042298,-300.0,0.00024657,4]
[370041410,1751859042307,-300.0,0.00024657,4]
[370041411,1751859042317,-300.0,0.00024657,4]
[370041412,1751859042326,-327.85232221,0.00024657,4]
[370041413,1751859042336,-200.0,0.00024657,2]
[370041414,1751859042347,-210.00855503,0.00024657,2]
[370041415,1751859042356,-200.0,0.00024658,15]
[370041416,1751859042366,-380.0,0.00024658,2]
[370041417,1751859042375,-466.0,0.00024658,2]
[370041418,1751859042385,-1371.95330811,0.00024659,11]
[370041419,1751859042395,-2500.0,0.00024664,2]
[370041420,1751859042404,-620.93,0.00024678,2]
[370041421,1751859042413,-539.66,0.00024678,2]
[370041422,1751859042422,-695.75,0.00024678,2]
[370041423,1751859042431,-215.0738,0.00024679,2]
[370041424,1751859042441,-466.0,0.00024685,2]
[370041425,1751859042451,-1865.05147816,0.000247,2]
[370041426,1751859042460,-2614.02,0.00024706,7]
[370041427,1751859042470,-466.0,0.00024713,2]
[370041428,1751859042479,-466.0,0.0002474,2]
[370041429,1751859042489,-500.8130656,0.00024747,9]
[370041430,1751859042499,-6460.14904702,0.00024767,2]
[370041431,1751859042509,-566.57021522,0.00024767,2]
[370041432,1751859042519,-2264.01458002,0.00024767,2]
[370041434,1751859042528,-466.0,0.00024768,2]
[370041436,1751859042538,-160.21940151,0.00024773,2]
[370041437,1751859042547,-500.0,0.00024773,2]
[370041439,1751859042557,-466.0,0.00024795,2]
[370041441,1751859042566,-500.0,0.00024798,9]
[370041443,1751859042575,-1498.20536688,0.00024799,2]
[370041444,1751859042584,-2000.0,0.000248,2]
[370041445,1751859042593,-2000.0,0.000248,2]
[370041446,1751859042603,-12487.0537154,0.000248,2]
[370041447,1751859042612,-151.0,0.000248,7]
[370041448,1751859042621,-50532.86497784,0.000248,2]
[370041449,1751859042631,-151.0,0.000248,7]
[370041450,1751859042640,-2614.02,0.00024806,5]
[370041451,1751859042650,-466.0,0.00024822,2]
[370041452,1751859042659,-150.4315,0.00024825,2]
[370041453,1751859042669,-238.40868167,0.00024828,7]
[370041454,1751859042678,-1849.790396,0.0002484,5]
[370041455,1751859042687,-466.0,0.0002485,2]
[370041456,1751859042696,-1000.0,0.0002486,5]
[370041457,1751859042705,-1371.95330811,0.00024866,12]
[370041458,1751859042715,-500.0,0.00024873,2]
[370041459,1751859042724,-466.0,0.00024877,2]
[370041460,1751859042733,-1000.0,0.0002488,5]
[370041461,1751859042743,-109076.61499569,0.00024898,2]
[370041462,1751859042752,-238011.9546,0.00024899,4]
[370041463,1751859042761,-2000.0,0.000249,2]
[370041464,1751859042770,-2000.0,0.000249,2]
[370041465,1751859042781,-151.0,0.000249,7]
[370041466,1751859042790,-157.0,0.000249,3]
[370041467,1751859042800,-157.0,0.000249,3]
[370041468,1751859042809,-157.13838285,0.000249,3]
[370041470,1751859042818,-201.40044229,0.000249,3]
[370041472,1751859042827,-154.67956278,0.000249,3]
[370041474,1751859042837,-154.0,0.000249,3]
[370041475,1751859042848,-154.0,0.000249,3]
[370041476,1751859042857,-154.0,0.000249,3]
[370041477,1751859042866,-154.0,0.000249,3]
[370041478,1751859042875,-154.0,0.000249,3]
[370041479,1751859042885,-154.0,0.000249,3]
[370041480,1751859042894,-154.0,0.000249,3]
[370041481,1751859042903,-156.90230019,0.000249,3]
[370041482,1751859042913,-318.0,0.000249,3]
[370041483,1751859042925,-318.0,0.000249,3]
[370041484,1751859042934,-318.0,0.000249,3]
[370041485,1751859042943,-318.0,0.000249,3]
[370041486,1751859042952,-277.85783841,0.000249,3]
[370041487,1751859042961,-1000.0,0.000249,5]
[370041488,1751859042970,-151.0,0.000249,7]
[370041489,1751859042979,-151.0,0.000249,7]
[370041490,1751859042989,-151.0,0.000249,7]
[370041491,1751859042998,-153.080685,0.000249,7]
[370041492,1751859043008,-111902.02491287,0.000249,2]
[370041493,1751859043099,-533.92,0.000249,2]
[370041494,1751859043110,-2069.567383,0.000249,2]
[370041495,1751859043122,-1430.0000001,0.000249,2]
[370041496,1751859043133,-318953.63799815,0.000249,2]
[370041511,1751859043333,-467.46,0.00018186,2]
[370041512,1751859043345,-467.46,0.0001846,2]
[370041513,1751859043355,-467.46,0.00018734,2]
[370041514,1751859043365,-467.46,0.00019008,2]
[370041515,1751859043374,-467.46,0.00019282,2]
[370041516,1751859043384,-467.46,0.00019556,2]
[370041517,1751859043396,-45.6,0.0001983,2]
[370041559,1751859046087,-461.37309788,0.00018187,2]
[370041560,1751859046096,-500.0,0.00019197,2]
[370041561,1751859046106,-500.0,0.00019197,2]
[370041562,1751859046116,-500.0,0.00019197,2]
[370041563,1751859046125,-205.74881826,0.00019197,2]
[370041564,1751859046134,-304.08835168,0.00019197,2]
[370041565,1751859046144,-321.3060118,0.00019197,2]
[370041566,1751859046153,-500.0,0.00019197,2]
[370041567,1751859046162,-264.42253319,0.00019197,2]
[370041568,1751859046172,-158.59916524,0.00019197,2]
[370041569,1751859046181,-500.0,0.00019197,2]
[370041570,1751859046191,-500.0,0.00019197,2]
[370041571,1751859046200,-500.0,0.00019197,2]
[370041572,1751859046209,-500.0,0.00019197,2]
[370041574,1751859046219,-500.0,0.00019197,2]
[370041575,1751859046228,-345.92792846,0.00019197,2]
[370041577,1751859046238,-500.0,0.00019197,2]
[370041578,1751859046248,-421.86,0.0001983,2]
[370041579,1751859046257,-467.46,0.00020104,2]
[370041580,1751859046267,-467.46,0.00020378,2]
[370041581,1751859046277,-467.46,0.00020652,2]
[370041582,1751859046287,-467.46,0.00020926,2]
[370041583,1751859046296,-295.62715,0.00021033,2]
[370041585,1751859046305,-295.62715,0.00021123,2]
[370041587,1751859046314,-467.46,0.000212,2]
[370041589,1751859046324,-295.62715,0.00021213,2]
[370041591,1751859046333,-295.62715,0.00021304,2]
[370041593,1751859046342,-295.62715,0.00021394,2]
[370041595,1751859046351,-467.46,0.00021474,2]
[370041597,1751859046360,-295.62715,0.00021485,2]
[370041599,1751859046369,-467.46,0.00021748,2]
[370041601,1751859046378,-467.46,0.00022022,2]
[370041603,1751859046387,-467.46,0.00022296,2]
[370041604,1751859046397,-600.0,0.00022473,2]
[370041606,1751859046406,-467.46,0.0002257,2]
[370041608,1751859046415,-467.46,0.00022844,2]
[370041610,1751859046424,-1200.0,0.00023021,2]
[370041612,1751859046433,-2153.0,0.00023182,2]
[370041614,1751859046442,-151.0,0.0002331,2]
[370041616,1751859046451,-151.0,0.0002331,2]
[370041618,1751859046460,-215.90368787,0.0002331,2]
[370041620,1751859046469,-157.46393335,0.00023484,2]
[370041622,1751859046478,-1617.30142449,0.00023529,2]
[370041624,1751859046487,-1800.0,0.00023568,2]
[370041626,1751859046496,-151.0,0.00024,7]
[370041628,1751859046506,-2400.0,0.00024116,2]
[370041630,1751859046515,-500.0,0.00024658,2]
[370041632,1751859046524,-466.33482191,0.00024658,2]
[370041634,1751859046533,-500.0,0.00024658,2]
[370041636,1751859046543,-500.0,0.00024658,2]
[370041638,1751859046552,-500.0,0.00024658,2]
[370041640,1751859046561,-500.0,0.00024658,2]
[370041642,1751859046571,-3000.0,0.00024664,2]
[370041644,1751859046580,-151.0,0.000248,7]
[370041646,1751859046591,-151.0,0.000248,7]
[370041648,1751859046601,-213.37396403,0.00024898,7]
[370041679,1751859239955,239.968466,0.00013699,2]
[370041683,1751859537972,171.97228254,0.000222,69]
[370041685,1751859709773,253.4580192,0.00016186,2]
[370041686,1751859971907,4000.0,0.00027397,120]
[370041687,1751860000336,-152.97571006,0.00017084,2]
[370041688,1751860025086,-4.48822329,0.00017084,2]
[370041689,1751860025107,-176.0,0.00017182,2]
[370041690,1751860025130,-232.0,0.00017182,2]
[370041691,1751860025154,-302.0,0.00017182,2]
[370041692,1751860025176,-146.79776357,0.00017182,2]
[370041693,1751860044082,-153.20223643,0.00017182,2]
[370041694,1751860044104,-352.11130277,0.00017183,2]
[370041695,1751860044126,-500.0,0.00017183,2]
[370041696,1751860044147,-265.92730424,0.00017183,2]
[370041697,1751860044168,-210.94225379,0.00017183,2]
[370041698,1751860121058,631.1598582,0.00016184,2]
[370041707,1751860148106,-157.46393335,0.00017082,2]
[370041708,1751860148129,-300.0,0.0001718,2]
[370041709,1751860148150,-324.59854079,0.00017181,2]
[370041710,1751860149178,-175.40145921,0.00017181,2]
[370041711,1751860149199,-176.22129471,0.00017181,2]
[370041712,1751860149221,-500.0,0.00017181,2]
[370041713,1751860149244,-500.0,0.00017181,2]
[370041714,1751860149264,-463.3941044,0.00017181,2]
[370041715,1751860149287,-210.57295837,0.00017181,2]
[370041716,1751860149309,-500.0,0.00017181,2]
[370041717,1751860149334,-500.0,0.00017181,2]
[370041718,1751860149355,-583.97893299,0.00017181,2]
[370041719,1751860149378,-500.0,0.00017181,2]
[370041720,1751860149402,-500.0,0.00017181,2]
[370041721,1751860149424,-500.0,0.00017181,2]
[370041722,1751860149446,-500.0,0.00017181,2]
[370041723,1751860149467,-49578.84802973,0.00017182,2]
[370041724,1751860149489,-460.0,0.00017183,2]
[370041725,1751860149513,-460.0,0.00017183,2]
[370041726,1751860149535,-460.0,0.00017184,2]
[370041727,1751860149558,-460.0,0.00017184,2]
[370041728,1751860149580,-460.0,0.00017184,2]
[370041729,1751860149602,-354.41398987,0.00017184,2]
[370041730,1751860149625,-460.0,0.00017184,2]
[370041731,1751860149647,-460.0,0.00017184,2]